bitfinex/quotes_ETHUSD_20220212
["timestamp","ask_amount","ask_price","bid_price","bid_amount"]
[1644636161432,0.02641379,2937.7,2937.5,0.85787142]
[1644636162078,0.02641379,2937.7,2937.6,0.87190852]
[1644636162277,0.02641379,2937.7,2937.6,1.03456078]
[1644636162278,0.00402728,2937.7,2937.6,1.03456078]
[1644636162479,4.033e-05,2938.6,2937.7,3.6]
[1644636162675,3.5,2939.1,2937.9,0.85073]
[1644636162676,0.00779202,2938.2,2937.9,0.85073]
[1644636162875,0.00779202,2938.2,2938.1,1.10837852]
[1644636163077,0.00779202,2938.2,2938.1,1.04200852]
[1644636163276,0.00779202,2938.2,2938.1,1.34200852]
[1644636163677,4.033e-05,2939.0,2938.3,2.5524477]
[1644636163878,0.03146134,2938.7,2938.4,0.87190852]
[1644636164076,0.03146134,2938.7,2938.4,0.6591]
[1644636164279,0.03146134,2938.7,2938.4,0.9591]
[1644636164478,0.03146134,2938.7,2938.4,0.6591]
[1644636164679,0.03146134,2938.7,2938.5,0.85081]
[1644636164980,0.00786623,2938.7,2938.6,0.489]
[1644636165579,0.00786623,2938.7,2938.6,1.17229799]
[1644636166025,4.033e-05,2939.1,2938.6,2.87386799]
[1644636166226,0.00786616,2938.8,2938.6,2.87386799]
[1644636166430,0.00786616,2938.8,2938.7,1.0]
[1644636166627,0.00786616,2938.8,2938.7,1.87229799]
[1644636166826,0.00786616,2938.8,2938.7,1.489]
[1644636167027,0.00786616,2938.8,2938.7,1.8723152]
[1644636167531,0.00786616,2938.8,2938.7,2.7230752]
[1644636169433,0.00786616,2938.8,2938.7,1.7230752]
[1644636169883,0.00786616,2938.8,2938.7,2.7230752]
[1644636171087,4.033e-05,2939.1,2938.8,3.6]
[1644636171285,4.033e-05,2939.1,2938.9,2.2338623]
[1644636171486,0.00365168,2939.9,2939.2,0.85058]
[1644636171688,0.00365168,2939.9,2939.3,0.8723152]
[1644636171885,0.00365168,2939.9,2939.4,0.3833152]
[1644636172086,0.00365168,2939.9,2939.7,0.93102305]
[1644636172288,0.00365168,2939.9,2939.8,0.489]
[1644636172488,4.79725403,2940.7,2939.8,0.489]
[1644636172489,0.00365168,2940.6,2939.8,0.489]
[1644636172687,0.81437273,2940.5,2939.8,0.489]
[1644636172889,0.00365168,2940.4,2939.8,0.489]
[1644636173090,0.17,2940.3,2939.8,1.33951]
[1644636173336,4.62715403,2940.7,2939.8,1.63951]
[1644636173337,0.00365168,2940.6,2939.8,1.63951]
[1644636173524,0.00365168,2940.2,2939.8,0.0956161]
[1644636173723,0.00365168,2940.6,2939.8,0.0956161]
[1644636174524,0.00365168,2940.6,2939.9,0.489]
[1644636174725,0.00365168,2940.6,2939.9,0.789]
[1644636174926,0.17,2940.9,2940.1,0.8502]
[1644636174927,0.00365168,2940.7,2940.1,0.8502]
[1644636175124,0.13819997,2941.0,2940.2,1.33924]
[1644636175125,0.00365168,2940.8,2940.2,1.33924]
[1644636175325,0.00365168,2940.8,2940.3,0.489]
[1644636176727,0.00365168,2940.8,2940.4,0.85025]
[1644636176931,0.00365168,2940.8,2940.4,1.33925]
[1644636177376,0.00365168,2940.8,2940.5,1.05870345]
[1644636177576,0.00365168,2940.8,2940.6,0.489]
[1644636177776,0.00365168,2941.1,2940.6,0.489]
[1644636177976,0.00365168,2941.4,2940.7,0.85029]
[1644636178177,0.64802441,2941.4,2940.8,0.489]
[1644636178576,0.00365168,2941.4,2940.8,0.489]
[1644636179778,0.17,2941.3,2940.8,0.489]
[1644636179978,0.00365168,2941.2,2941.1,0.85021]
[1644636180277,0.00365168,2941.3,2941.1,0.85021]
[1644636180678,0.00365168,2941.5,2941.1,0.85021]
[1644636182427,0.00365168,2941.5,2941.2,1.70023]
[1644636182627,0.00465168,2941.6,2941.2,1.70023]
[1644636182829,0.00365168,2941.6,2941.2,1.70023]
[1644636183829,0.00365168,2941.7,2941.3,0.8501]
[1644636184029,0.17345168,2941.7,2941.3,0.8501]
[1644636184429,0.00365168,2941.7,2941.3,0.8501]
[1644636184676,0.00365168,2941.8,2941.3,0.8501]
[1644636185075,0.64437273,2942.1,2941.3,0.8501]
[1644636185275,0.00365168,2942.0,2941.3,1.70003]
[1644636185476,0.00365168,2942.0,2941.5,0.84995]
[1644636185677,0.00365168,2942.0,2941.6,0.489]
[1644636185876,0.00365168,2942.2,2941.6,0.489]
[1644636186078,0.64437273,2942.4,2941.6,0.489]
[1644636186275,0.00365168,2942.3,2941.6,1.3766899]
[1644636186476,0.00365168,2942.3,2941.6,2.2265599]
[1644636186676,0.00365168,2942.3,2941.7,1.69974]
[1644636186877,0.00365168,2942.3,2941.8,0.489]
[1644636187078,0.00365168,2942.3,2941.9,0.84994]
[1644636187284,0.00365168,2942.3,2942.0,0.489]
[1644636187881,0.00365168,2942.3,2942.1,1.69968]
[1644636188335,0.81782441,2942.6,2942.1,1.69968]
[1644636188924,0.17345168,2942.6,2942.1,1.69968]
[1644636189124,0.00365168,2942.6,2942.1,1.69968]
[1644636189325,0.64437273,2942.8,2942.0,1.89361029]
[1644636189326,2.75,2942.5,2942.0,1.89361029]
[1644636189526,0.001,2942.4,2942.0,1.89361029]
[1644636189726,0.00365168,2942.4,2942.0,1.89361029]
[1644636189928,0.00365168,2942.6,2942.1,1.69968]
[1644636190727,0.00365168,2942.6,2942.0,1.89361029]
[1644636191129,0.00465168,2942.6,2942.0,1.89361029]
[1644636192175,0.91289454,2942.5,2942.0,1.89361029]
[1644636192373,0.17345168,2942.4,2942.0,1.89361029]
[1644636192577,0.91654622,2942.3,2942.0,1.89361029]
[1644636192775,0.91289454,2942.2,2942.0,1.89361029]
[1644636192974,0.91289454,2942.3,2942.0,1.89361029]
[1644636193174,0.91289454,2942.2,2942.0,1.89361029]
[1644636193376,0.91289454,2942.1,2942.0,1.89361029]
[1644636193574,0.91289454,2942.5,2942.0,0.35048349]
[1644636193775,0.88806689,2942.4,2942.0,0.35048349]
[1644636193974,0.88441521,2942.3,2942.0,0.35048349]
[1644636194175,0.88441521,2942.2,2942.0,0.35048349]
[1644636194375,0.00465168,2942.6,2942.0,0.35048349]
[1644636194576,0.88432391,2942.5,2942.0,0.35048349]
[1644636194876,0.00365168,2942.4,2942.0,0.35048349]
[1644636196425,0.00832325,2942.3,2942.0,0.35048349]
[1644636196627,0.88432391,2942.2,2942.0,0.35048349]
[1644636197026,0.00832325,2942.3,2942.0,0.35048349]
[1644636197230,0.88415585,2942.2,2942.0,0.35048349]
[1644636197431,0.00465168,2942.6,2942.0,0.35048349]
[1644636197634,0.00832333,2942.2,2942.0,0.35048349]
[1644636198430,0.00465168,2942.6,2942.0,0.35048349]
[1644636198631,0.00832333,2942.2,2942.0,0.35048349]
[1644636199433,0.00832333,2942.2,2942.0,0.83948349]
[1644636199672,0.00465168,2942.6,2942.0,0.83948349]
[1644636199870,0.00832333,2942.2,2942.0,0.83948349]
[1644636200874,0.17445168,2942.6,2942.0,0.83948349]
[1644636201075,0.00832333,2942.2,2942.0,0.83948349]
[1644636201974,0.00365168,2942.4,2942.0,0.83948349]
[1644636202376,0.00832333,2942.2,2942.0,0.83948349]
[1644636203179,0.8648893,2942.1,2942.0,0.83948349]
[1644636203425,0.00832333,2942.2,2942.0,0.83948349]
[1644636203626,0.8648893,2942.1,2942.0,0.83948349]
[1644636203829,0.00832333,2942.2,2942.0,1.13948349]
[1644636204226,0.03328834,2942.7,2942.1,3.85]
[1644636204425,3.2576,2943.5,2942.2,1.0]
[1644636204426,0.00365168,2943.1,2942.2,1.0]
[1644636204626,0.86782387,2943.2,2942.3,0.1699]
[1644636204825,0.00365168,2943.1,2942.6,1.12932519]
[1644636205026,0.00365168,2943.1,2942.7,0.489]
[1644636205226,0.00365168,2943.1,2942.4,0.3]
[1644636205227,0.00365168,2943.1,2942.8,0.489]
[1644636205433,0.87147555,2943.1,2942.9,0.489]
[1644636205630,0.86782387,2943.0,2942.4,0.6]
[1644636205828,0.86782387,2942.9,2942.5,0.489]
[1644636206128,0.87147555,2942.8,2942.5,2.18818]
[1644636206328,0.001,2943.4,2942.5,2.18818]
[1644636206527,0.64802441,2943.5,2942.5,2.18818]
[1644636206528,1.51697444,2943.5,2942.5,2.18818]
[1644636206732,0.86895003,2943.4,2942.6,0.84959]
[1644636207078,0.00365168,2943.3,2942.7,0.489]
[1644636207276,0.00365168,2943.3,2942.8,0.489]
[1644636207277,0.87160171,2943.3,2942.8,0.489]
[1644636207477,0.86795003,2943.2,2942.8,0.489]
[1644636207776,0.86795003,2943.1,2942.8,0.489]
[1644636207980,0.00365168,2943.0,2942.8,1.33859]
[1644636208377,0.0083146,2943.1,2942.8,1.33859]
[1644636208578,0.86795003,2943.0,2942.8,1.33859]
[1644636209581,0.86795003,2942.9,2942.8,1.33859]
[1644636210834,0.00831469,2943.0,2942.8,1.33859]
[1644636211026,0.86795003,2942.9,2942.8,1.33859]
[1644636211827,0.87260171,2943.2,2942.8,1.33859]
[1644636212028,0.00831469,2943.0,2942.8,1.33859]
[1644636212233,0.86795003,2942.9,2942.8,1.33859]
[1644636213034,0.00831469,2943.0,2942.8,1.33859]
[1644636213238,0.00831469,2943.0,2942.8,1.63859]
[1644636213239,0.86795003,2942.9,2942.8,1.63859]
[1644636213736,0.86795003,2942.9,2942.8,0.09599593]
[1644636213940,0.00831469,2943.0,2942.9,3.55]
[1644636214138,0.00465168,2943.2,2942.9,0.489]
[1644636214139,0.00365168,2943.2,2942.9,0.489]
[1644636214340,0.02088376,2943.3,2943.1,0.8494]
[1644636214569,0.02088376,2943.3,2943.2,0.489]
[1644636215169,0.02088376,2943.3,2943.2,0.789]
[1644636215369,0.02088376,2943.3,2943.2,0.489]
[1644636215569,0.00831434,2943.4,2943.3,0.84956]
[1644636215773,0.00831434,2943.4,2943.3,0.489]
[1644636216573,0.20670405,2943.8,2943.3,0.489]
[1644636216574,0.00365168,2943.5,2943.3,0.489]
[1644636216774,0.00831425,2943.5,2943.3,0.489]
[1644636216976,0.01196593,2943.5,2943.3,0.489]
[1644636217778,0.64802441,2943.7,2943.3,0.489]
[1644636217979,0.00831421,2943.5,2943.3,0.489]
[1644636218823,0.81882441,2943.8,2943.3,0.489]
[1644636219021,0.17445168,2943.8,2943.3,0.489]
[1644636219223,0.00831421,2943.5,2943.0,1.6988]
[1644636219423,0.00831421,2943.5,2942.7,0.489]
[1644636219623,1.13866692,2943.1,2942.8,1.69926]
[1644636219822,0.00465168,2943.0,2942.8,1.69926]
[1644636220023,0.00465168,2943.5,2942.8,1.69926]
[1644636220322,0.0083146,2943.1,2942.8,1.69926]
[1644636220525,0.02732609,2943.5,2942.8,1.69926]
[1644636220723,0.1698,2943.4,2942.8,1.69926]
[1644636220925,0.00365222,2943.3,2942.8,1.69926]
[1644636221129,1.03797888,2943.3,2942.8,1.69926]
[1644636221527,0.00365222,2943.3,2942.8,1.69926]
[1644636222276,0.64437273,2943.6,2942.8,1.69926]
[1644636222277,0.64437273,2943.4,2942.8,1.69926]
[1644636222474,0.00365222,2943.3,2942.8,1.69926]
[1644636222674,0.1698,2943.5,2942.8,1.69926]
[1644636222875,0.00365207,2943.4,2942.8,1.69926]
[1644636223076,0.1698,2943.3,2942.8,1.69926]
[1644636223579,0.00365207,2943.4,2942.8,1.69926]
[1644636223876,0.00365207,2943.4,2942.9,0.00831535]
[1644636223877,0.1698,2943.3,2942.9,0.00831535]
[1644636224076,1.6480248,2943.4,2942.9,0.00831535]
[1644636224276,0.6480248,2943.4,2942.9,0.00831535]
[1644636224878,0.6480248,2943.4,2942.8,1.69926]
[1644636224879,0.64437273,2943.3,2942.8,1.69926]
[1644636225078,0.00365207,2943.4,2943.0,0.00831536]
[1644636225079,0.6480248,2943.4,2943.0,0.00831536]
[1644636225278,1.6480248,2943.4,2943.0,0.00831536]
[1644636225480,0.81417273,2943.3,2943.0,0.00831536]
[1644636225826,0.81517273,2943.3,2943.0,0.04666753]
[1644636226020,0.64437273,2943.3,2943.0,0.03835217]
[1644636226421,0.001,2943.3,2943.0,0.03835217]
[1644636226620,0.00365207,2943.4,2943.0,0.04666753]
[1644636227427,0.6480248,2943.4,2943.0,0.03835217]
[1644636227626,0.6480248,2943.4,2943.0,0.04666763]
[1644636227827,0.64437273,2943.2,2943.0,0.04666763]
[1644636228026,0.64437273,2943.1,2943.0,0.04666763]
[1644636228627,0.64437273,2943.2,2943.0,0.03835217]
[1644636229773,0.001,2943.3,2943.0,0.03835217]
[1644636229774,0.64437273,2943.1,2943.0,0.03835217]
[1644636229972,0.64437273,2943.1,2943.0,0.04651156]
[1644636230172,0.64437273,2943.1,2943.0,0.00815939]
[1644636230972,0.64437273,2943.1,2942.7,1.69931]
[1644636231178,0.6480248,2943.1,2942.9,0.00815943]
[1644636231381,0.64437273,2943.1,2942.9,0.00815943]
[1644636231583,0.00365207,2943.2,2942.9,0.00815943]
[1644636231584,4.23815524,2943.0,2942.9,0.00815943]
[1644636231778,4.76358251,2943.0,2942.9,0.00815943]
[1644636231979,4.76458251,2943.0,2942.9,0.00815943]
[1644636232178,4.76458251,2943.0,2942.4,0.25]
[1644636232179,0.00067928,2942.8,2942.4,0.25]
[1644636232379,0.00067928,2942.8,2941.8,1.187]
[1644636232380,0.63997903,2942.8,2941.8,1.187]
[1644636232582,1.11044839,2942.4,2941.8,1.187]
[1644636232781,0.00465207,2942.3,2942.1,0.84991]
[1644636232983,0.001,2942.3,2942.1,0.84991]
[1644636233629,0.001,2942.3,2941.8,1.09411576]
[1644636233826,0.00365207,2942.6,2941.8,1.09411576]
[1644636234227,0.00365207,2942.6,2941.8,0.79411576]
[1644636234427,0.80245227,2942.6,2941.8,0.79411576]
[1644636234630,4.3818194,2942.5,2941.7,1.69988]
[1644636234929,0.95390167,2942.2,2941.7,1.69988]
[1644636235228,0.7978002,2942.1,2941.7,1.69988]
[1644636235427,0.7988002,2942.1,2941.7,1.69988]
[1644636236028,0.7988002,2942.1,2941.8,0.00831637]
[1644636236731,4.38915016,2942.1,2941.8,0.00831637]
[1644636236928,0.7988002,2942.0,2941.5,1.69997]
[1644636237178,0.7988002,2942.1,2941.8,0.00831633]
[1644636237376,0.7978002,2942.1,2941.8,0.00831633]
[1644636237576,0.7988002,2942.1,2941.8,0.00831633]
[1644636238178,0.7988002,2942.1,2941.5,1.69997]
[1644636238378,0.7988002,2942.1,2941.8,0.00831633]
[1644636239379,0.7988002,2942.1,2941.5,1.69997]
[1644636239578,0.7988002,2942.1,2941.8,0.00831633]
[1644636240582,0.7988002,2942.1,2941.7,0.85002]
[1644636240827,0.80909975,2942.3,2941.8,0.00831633]
[1644636240828,0.7978002,2942.0,2941.8,0.00831633]
[1644636241022,0.7978002,2941.9,2941.8,0.00831633]
[1644636241622,0.7978002,2941.9,2941.5,1.69997]
[1644636241825,0.001,2942.2,2941.5,1.69997]
[1644636241826,0.7988002,2942.2,2941.5,1.69997]
[1644636242023,0.7978002,2942.1,2941.7,0.00831642]
[1644636242228,0.7978002,2942.0,2941.7,0.85833642]
[1644636242527,0.7988002,2942.0,2941.7,0.85833642]
[1644636242927,0.7978002,2941.9,2941.7,0.85002]
[1644636243128,0.7978002,2941.8,2941.7,0.85833642]
[1644636243531,0.1708,2942.3,2941.7,0.85833642]
[1644636243532,0.7978002,2942.2,2941.7,0.85833642]
[1644636243731,0.7978002,2942.1,2941.7,0.85833642]
[1644636243932,0.7978002,2942.0,2941.7,0.85833642]
[1644636244131,0.76779527,2941.9,2941.7,0.85002]
[1644636244334,5.61462852,2942.6,2941.7,0.85002]
[1644636244335,0.63929975,2942.2,2941.8,0.00831637]
[1644636244774,3.54943839,2942.1,2941.8,0.00831637]
[1644636244974,0.64029975,2942.0,2941.8,0.00831637]
[1644636245274,0.1698,2941.9,2941.0,3.6616]
[1644636245475,0.001,2941.9,2941.0,3.6616]
[1644636245674,0.63929975,2942.2,2941.8,0.00831637]
[1644636245675,1.15761708,2942.0,2941.8,0.00831637]
[1644636245875,0.001,2941.9,2941.8,0.00831637]
[1644636246474,0.001,2941.9,2941.6,1.69993]
[1644636246979,0.001,2941.9,2941.7,0.00831642]
[1644636247180,0.1708,2941.9,2941.7,0.00831642]
[1644636247878,0.1708,2941.9,2941.6,1.69993]
[1644636248078,0.001,2941.9,2941.7,0.00831646]
[1644636248333,0.001,2941.9,2941.5,0.80839646]
[1644636250124,0.01486297,2941.8,2941.5,0.80839646]
[1644636251625,0.01486297,2941.8,2941.5,0.81671305]
[1644636252479,0.01486297,2941.8,2941.5,0.80839646]
[1644636252678,0.01486297,2941.8,2941.5,0.81671305]
[1644636253681,0.01586297,2941.8,2941.3,0.97364973]
[1644636254179,0.01586297,2941.8,2941.5,0.00831659]
[1644636254180,0.01486297,2941.8,2941.5,0.00831659]
[1644636254379,0.01486297,2941.8,2941.5,0.85838659]
[1644636254880,0.01486297,2941.8,2941.5,0.85007]
[1644636255081,0.01486297,2941.8,2941.3,0.97364973]
[1644636256328,0.00832093,2941.7,2941.4,0.00832205]
[1644636257329,0.01486297,2941.8,2941.3,0.97364973]
[1644636257529,0.00832093,2941.7,2941.4,0.00832205]
[1644636258630,0.01486297,2941.8,2941.3,0.97364973]
[1644636258830,0.00832093,2941.7,2941.4,0.00832205]
[1644636259878,0.00832093,2941.7,2940.9,0.25]
[1644636259879,5.0,2941.6,2940.9,0.25]
[1644636260076,0.1708,2941.5,2941.4,0.00832205]
[1644636260378,1.1708,2941.5,2941.4,0.00832205]
[1644636260578,1.4708,2941.5,2941.4,2.205e-05]
[1644636261176,0.8505614,2941.3,2940.5,0.346394]
[1644636261375,0.86803864,2941.1,2940.5,0.096394]
[1644636261576,0.17,2941.0,2940.5,0.096394]
[1644636261776,0.171,2941.0,2940.5,0.096394]
[1644636264028,4.02166881,2941.0,2940.5,0.096394]
[1644636264228,0.001,2940.9,2940.5,0.096394]
[1644636264428,1.76447716,2940.9,2940.5,0.096394]
[1644636264628,0.76447716,2940.8,2940.5,0.096394]
[1644636264831,0.76447716,2940.8,2940.6,0.00832266]
[1644636265028,0.76347716,2940.7,2940.6,0.00832266]
[1644636265430,0.76447716,2940.9,2940.6,0.00832266]
[1644636265629,0.76347716,2940.8,2940.6,0.00832266]
[1644636265832,0.76347716,2940.8,2940.5,0.096394]
[1644636266030,0.76347716,2940.7,2940.6,0.00689948]
[1644636266230,0.76447716,2940.9,2940.6,0.00689948]
[1644636266930,0.76447716,2940.9,2940.5,0.096394]
[1644636267178,0.76447716,2940.9,2940.6,0.00689948]
[1644636268179,0.76447716,2940.9,2940.5,0.096394]
[1644636268380,0.76447716,2940.9,2940.6,0.00689948]
[1644636269380,1.36447716,2940.9,2940.5,0.096394]
[1644636269581,0.76447716,2940.8,2940.6,0.00689948]
[1644636269782,0.93447716,2940.8,2940.6,0.00689948]
[1644636270084,0.76347716,2940.7,2940.6,0.00689948]
[1644636270481,0.76347716,2940.7,2940.5,0.096394]
[1644636270926,0.76347716,2940.7,2940.5,0.10352428]
[1644636271725,0.76347716,2940.7,2940.5,0.096394]
[1644636271926,6.36347716,2940.7,2940.5,0.1035244]
[1644636272132,3.54258979,2940.6,2940.5,0.1035244]
[1644636272329,0.93447716,2940.6,2940.5,0.1035244]
[1644636272529,1.93447716,2940.6,2940.5,0.1035244]
[1644636272733,3.9,2940.5,2939.8,0.25]
[1644636272935,1.70619927,2940.3,2939.6,3.3263]
[1644636273233,0.8717016,2939.7,2939.6,3.3263]
[1644636273436,0.8717016,2939.7,2939.6,0.66337271]
[1644636273733,0.06583311,2939.7,2939.6,0.66337271]
[1644636274333,0.06583311,2939.7,2938.9,3.011]
[1644636274334,0.06583311,2939.7,2938.7,0.49193611]
[1644636274589,0.06583311,2939.7,2939.5,0.00213725]
[1644636274987,0.06683311,2939.7,2939.5,0.00213725]
[1644636275187,3.66052965,2939.7,2939.5,0.00213725]
[1644636275390,3.66052965,2939.7,2938.8,0.64848228]
[1644636275391,1.001,2939.6,2938.8,0.64848228]
[1644636275593,1.001,2939.6,2939.5,0.00213728]
[1644636275594,2.1518904,2939.6,2939.5,0.00213728]
[1644636275787,1.1518904,2939.6,2939.5,0.00213728]
[1644636276588,1.1518904,2939.6,2939.2,1.70127]
[1644636276589,0.001,2939.6,2939.2,1.70127]
[1644636276788,0.98883057,2940.4,2939.2,1.70127]
[1644636276789,0.001,2939.5,2939.4,0.00710657]
[1644636276987,3.5,2940.3,2939.4,0.65489294]
[1644636277191,0.98883057,2940.4,2939.5,0.64778637]
[1644636277192,0.001,2940.2,2939.5,0.64778637]
[1644636277392,0.79239077,2940.3,2939.6,0.64778637]
[1644636277593,0.85286377,2939.7,2939.4,0.00710657]
[1644636277792,0.85286377,2939.7,2939.2,2.19027]
[1644636277793,0.85286377,2939.7,2939.5,0.63204829]
[1644636277996,0.85286377,2939.7,2939.0,1.1437]
[1644636277997,1.15386377,2939.7,2939.0,1.1437]
[1644636278192,1.15386377,2939.7,2939.1,0.63708218]
[1644636278193,0.001,2939.6,2939.1,0.63708218]
[1644636278430,0.85286377,2939.7,2939.2,0.63708218]
[1644636278431,0.85386377,2939.7,2939.2,0.63708218]
[1644636278633,0.85286377,2939.7,2939.3,0.63708218]
[1644636278830,0.85286377,2939.7,2938.9,0.63708218]
[1644636279032,0.85286377,2939.7,2939.0,0.63724145]
[1644636279232,0.85286377,2939.7,2939.4,0.00765191]
[1644636279233,1.15386377,2939.7,2939.4,0.00765191]
[1644636279432,0.001,2939.6,2939.4,0.00765191]
[1644636279633,0.8518613,2939.6,2939.4,0.00765191]
[1644636279832,0.01816983,2939.5,2939.4,0.00765191]
[1644636280235,0.01816983,2939.5,2938.8,0.489]
[1644636280536,0.01816983,2939.5,2939.3,0.00765204]
[1644636280732,0.01916983,2939.5,2939.3,0.00765204]
[1644636281235,4.26858964,2939.5,2939.3,0.00765204]
[1644636281435,5.45126346,2939.4,2938.7,1.24003611]
[1644636281633,5.45126346,2939.4,2939.3,0.00699577]
[1644636281833,1.1711,2939.4,2939.3,0.00699577]
[1644636282289,3.72379649,2939.4,2939.3,0.00699577]
[1644636282687,0.97812542,2939.0,2938.7,0.00293611]
[1644636282887,0.97812542,2939.0,2938.7,0.61811313]
[1644636283091,0.97812542,2939.0,2938.3,1.1558]
[1644636283092,0.97912542,2939.0,2938.4,0.00293611]
[1644636283289,0.97912542,2939.0,2938.4,0.61811193]
[1644636283889,0.97912542,2939.0,2938.4,0.00293611]
[1644636284094,0.97912542,2939.0,2938.6,0.00699744]
[1644636284690,0.9110403,2939.0,2938.6,0.00699744]
[1644636284891,0.9110403,2939.0,2938.4,0.85390611]
[1644636285090,0.9100403,2939.0,2938.4,0.85390611]
[1644636285292,0.9100403,2939.0,2938.7,0.00713095]
[1644636286139,0.9100403,2939.0,2938.4,0.85390611]
[1644636286340,0.001,2939.1,2938.7,0.00713083]
[1644636287145,1.7018339,2939.7,2938.7,0.00713083]
[1644636287146,0.001,2939.2,2938.7,0.00713083]
[1644636287345,3.93877981,2940.4,2938.8,0.489]
[1644636287346,0.1701,2939.8,2938.8,0.489]
[1644636287544,1.11598437,2940.0,2939.0,1.01857123]
[1644636287746,0.171,2939.9,2939.1,2.19038]
[1644636288950,0.171,2939.9,2939.4,0.00707203]
[1644636289778,0.171,2940.0,2939.3,0.85072]
[1644636290177,0.171,2940.0,2939.1,3.36408]
[1644636290178,0.171,2940.0,2939.5,0.00707167]
[1644636290380,0.17,2940.0,2939.5,0.00707167]
[1644636290983,0.17,2940.0,2939.4,1.70119]
[1644636291179,0.171,2940.2,2939.6,0.00707143]
[1644636291580,0.171,2940.2,2939.6,0.85770143]
[1644636292186,0.171,2940.2,2939.6,0.85063]
[1644636292384,0.171,2940.2,2939.4,1.70119]
[1644636292585,0.171,2940.2,2939.8,0.0070794]
[1644636292986,4.8547,2940.8,2939.8,0.0070794]
[1644636292987,0.171,2940.3,2939.8,0.0070794]
[1644636293185,6.1010955,2941.0,2939.9,0.489]
[1644636293186,0.171,2940.7,2939.9,0.489]
[1644636293470,2.3331,2941.1,2939.9,0.489]
[1644636293471,0.78950268,2940.6,2939.9,0.489]
[1644636293672,1.1972,2941.1,2940.0,1.70085]
[1644636293673,0.171,2941.0,2940.0,1.70085]
[1644636293875,1.04762615,2939.9,2939.7,3.0458]
[1644636294077,0.001,2939.8,2939.6,1.15049]
[1644636294281,0.001,2939.8,2939.7,0.489]
[1644636294880,0.001,2939.8,2939.7,2.18999]
[1644636295179,0.001,2939.8,2939.7,3.18999]
[1644636295382,0.001,2939.8,2939.7,2.48999]
[1644636295579,0.001,2939.8,2939.7,3.13584904]
[1644636295779,0.001,2939.8,2939.7,2.83584904]
[1644636295982,0.001,2939.8,2939.7,2.18999]
[1644636296183,0.001,2939.8,2939.7,3.13649716]
[1644636296381,0.001,2939.8,2939.7,4.13649716]
[1644636299790,0.001,2939.8,2939.7,3.13649716]
[1644636299991,0.001,2939.8,2939.7,2.83649716]
[1644636303542,1.06588282,2939.9,2939.7,2.83649716]
[1644636303543,0.87384792,2939.9,2939.8,3.6]
[1644636303740,0.00784512,2940.5,2940.0,0.85023]
[1644636303944,0.00784512,2940.5,2940.1,1.13550716]
[1644636304142,0.17,2941.3,2940.1,3.03967]
[1644636304341,0.17,2941.0,2940.2,0.65117898]
[1644636304583,0.00784609,2940.5,2940.3,0.489]
[1644636305386,0.17,2941.2,2940.3,0.489]
[1644636305686,0.00784632,2940.5,2940.3,1.52556188]
[1644636305985,0.00784632,2940.5,2940.4,0.85025]
[1644636306285,0.00784632,2940.5,2940.4,1.33925]
[1644636306685,0.17,2941.2,2940.4,1.33925]
[1644636306886,0.00784618,2940.6,2940.4,1.33925]
[1644636307892,0.17,2941.2,2940.4,1.33925]
[1644636308092,0.00572797,2940.6,2940.4,1.33925]
[1644636308534,0.00572797,2940.6,2940.5,0.65147523]
[1644636308733,0.00572797,2940.6,2940.5,1.14047389]
[1644636308933,0.001,2941.3,2940.5,2.84086389]
[1644636309135,0.76074704,2941.3,2940.8,0.85028]
[1644636309334,0.02290846,2941.1,2940.8,0.85028]
[1644636309635,0.75974704,2941.0,2940.8,0.85028]
[1644636310433,0.75974704,2940.9,2940.8,0.85028]
[1644636311836,0.00831642,2941.0,2940.8,1.33928]
[1644636312589,0.171,2941.7,2940.8,2.37088155]
[1644636312787,0.03326051,2941.5,2941.3,0.8501]
[1644636313187,0.75965843,2941.4,2941.3,0.8501]
[1644636314089,0.75965843,2941.4,2941.1,2.12932869]
[1644636314791,0.00831598,2941.5,2941.3,0.8501]
[1644636314990,0.77768484,2942.2,2941.4,0.489]
[1644636314991,0.001,2942.1,2941.4,0.489]
[1644636315190,0.77768484,2942.2,2941.4,2.189]
[1644636315391,0.03325927,2941.8,2941.4,2.189]
[1644636315591,0.75934504,2941.7,2941.4,2.189]
[1644636316436,0.75934504,2941.6,2941.4,2.139]
[1644636316637,0.1708,2941.9,2941.4,2.139]
[1644636316638,0.0083158,2941.7,2941.4,2.139]
[1644636316839,0.75871261,2941.6,2941.4,2.139]
[1644636317241,0.0083158,2941.7,2941.4,2.139]
[1644636317441,0.13819997,2942.2,2941.4,2.139]
[1644636317643,0.00831585,2941.6,2941.4,2.139]
[1644636318741,0.001,2942.0,2941.4,2.139]
[1644636318941,0.00831585,2941.6,2941.4,2.139]
[1644636319784,0.001,2942.0,2941.4,2.139]
[1644636319986,0.742099,2942.0,2941.4,2.139]
[1644636320202,0.00768172,2941.6,2941.5,0.02322976]
[1644636320591,0.00768172,2941.6,2941.5,0.46222976]
[1644636320993,0.001,2942.0,2941.5,0.46222976]
[1644636321192,0.00768168,2941.7,2941.6,0.85001]
[1644636321394,0.00768168,2941.7,2941.6,1.33901]
[1644636322192,0.001,2942.0,2941.6,1.33901]
[1644636322392,0.74135772,2942.0,2941.6,1.33901]
[1644636322592,0.00768159,2941.8,2941.6,1.33901]
[1644636323433,0.1698,2942.1,2941.6,1.33901]
[1644636323634,0.00768155,2941.8,2941.6,1.33901]
[1644636324640,0.1698,2942.1,2941.6,1.33901]
[1644636324839,0.00772393,2941.8,2941.6,1.33901]
[1644636325438,0.0250314,2941.7,2941.6,1.33901]
[1644636328189,0.0250314,2941.7,2941.6,4.58893043]
[1644636328391,0.0250314,2941.7,2941.6,4.62082233]
[1644636328991,0.0250314,2941.7,2941.6,4.79062233]
[1644636329193,3.14e-05,2941.7,2941.6,5.79062233]
[1644636329390,0.1698,2942.5,2941.8,0.84969]
[1644636329591,0.1698,2942.5,2941.9,6.71017419]
[1644636329793,0.03087992,2942.2,2941.9,7.31017419]
[1644636329991,0.03087992,2942.2,2941.9,8.83961689]
[1644636330190,0.03087992,2942.2,2942.0,1.1698]
[1644636330391,0.03087992,2942.2,2942.1,4.8180562]
[1644636330593,0.00067928,2942.8,2942.1,5.1180562]
[1644636330833,0.00067928,2942.8,2942.3,0.84975]
[1644636331034,0.00067928,2942.8,2942.4,0.489]